fUST/lending_fUST_20260504
["ID","MTS","AMOUNT","RATE_DAILY","PERIOD"]
[421544841,1777847433000,-2030.296672,0.00015638,2]
[421544839,1777847433000,-2150.738,0.00015583,2]
[421544832,1777847433000,-151.0,0.00015583,2]
[421544835,1777847433000,-151.0,0.00015583,2]
[421544834,1777847433000,-151.0,0.00015583,2]
[421544831,1777847433000,-151.0,0.00015583,2]
[421544828,1777847433000,-151.0,0.00015583,2]
[421544829,1777847433000,-151.0,0.00015583,2]
[421544825,1777847433000,-151.0,0.00015583,2]
[421544838,1777847433000,-151.0,0.00015583,2]
[421544843,1777847433000,-500.0,0.00015662,2]
[421544830,1777847433000,-151.0,0.00015583,2]
[421544858,1777847434000,-719.76,0.00015663,2]
[421544859,1777847434000,-304.0,0.00015663,2]
[421544869,1777847438000,-21337.3381499,0.00015663,2]
[421544870,1777847438000,-190748.00411757,0.00015663,2]
[421544868,1777847438000,-5000.0,0.00015506,2]
[421544875,1777847440000,-716.17832852,0.00015663,2]
[421544876,1777847440000,-1000.0,0.00015663,2]
[421544877,1777847440000,-3432.53169878,0.00015663,2]
[421544888,1777847446000,-31256.43491854,0.00015663,2]
[421544886,1777847446000,-457.9387042,0.00015663,2]
[421544887,1777847446000,-9307.39219262,0.00015663,2]
[421544885,1777847446000,-7169.29868178,0.00015663,2]
[421544884,1777847446000,-403.13306852,0.00015662,2]
[421544902,1777847449000,-8686.9559429,0.00015663,2]
[421544901,1777847449000,-8839.75889643,0.00015663,2]
[421544900,1777847449000,-4119.01448785,0.00015663,2]
[421544899,1777847449000,-744.00654836,0.00015663,2]
[421544981,1777848054000,-5000.0,8.163e-05,2]
[421544986,1777848093000,-5000.0,8.163e-05,2]
[421544987,1777848093000,-535.0,8.163e-05,2]
[421544989,1777848106000,-5000.0,8.163e-05,2]
[421544990,1777848133000,-500.0,0.00016789,30]
[421544994,1777848166000,-535.0,8.163e-05,2]
[421544993,1777848166000,-3530.95360828,8.163e-05,2]
[421544997,1777848208000,-1296.9845735,8.5e-05,7]
[421544996,1777848208000,-244.71705062,8.246e-05,2]
[421544998,1777848223000,-244.71705062,8.5e-05,7]
[421545015,1777848521000,-562.0,0.00010145,2]
[421545014,1777848521000,-3158.55712315,0.00010145,2]
[421545016,1777848581000,-564.0,0.00010245,2]
[421545017,1777848581000,-239.82270961,0.00010245,2]
[421545030,1777848632000,-152.0,0.00014372,7]
[421545022,1777848632000,-235.02625541,0.00012972,2]
[421545028,1777848632000,-152.0,0.00014367,7]
[421545029,1777848632000,-500.0,0.00014371,2]
[421545025,1777848632000,-1000.0,0.00013699,2]
[421545024,1777848632000,-320.624152,0.00013699,2]
[421545031,1777848632000,-152.0,0.00014372,7]
[421545026,1777848632000,-176.00675872,0.00014094,2]
[421545027,1777848632000,-2411.39255421,0.00014175,2]
[421545032,1777848632000,-152.0,0.0001455,7]
[421545034,1777848632000,-6829.55124337,0.0001455,2]
[421545033,1777848632000,-152.0,0.0001455,7]
[421545023,1777848632000,-604.0,0.00012972,2]
[421545035,1777848632000,-3231.43842965,0.0001455,2]
[421545036,1777848632000,-152.0,0.00014555,7]
[421545037,1777848632000,-152.0,0.00014555,7]
[421545039,1777848632000,-1697.78107248,0.00014603,2]
[421545038,1777848632000,-300.0,0.00014602,2]
[421545041,1777848633000,-152.0,0.00014657,7]
[421545043,1777848633000,-152.0,0.00014666,7]
[421545040,1777848633000,-3027.46781389,0.00014603,2]
[421545044,1777848633000,-152.0,0.00014666,7]
[421545045,1777848633000,-1000.0,0.0001478,2]
[421545042,1777848633000,-152.0,0.00014662,7]
[421545046,1777848633000,-277.33098139,0.00014972,2]
[421545051,1777848633000,-3823.18861969,0.00015084,2]
[421545050,1777848633000,-576.63314209,0.00015084,2]
[421545049,1777848633000,-5927.92438741,0.00015084,2]
[421545048,1777848633000,-191.769708,0.00015068,2]
[421545047,1777848633000,-4796.31129329,0.00015031,2]
[421545070,1777848638000,-5112.55530789,0.00015458,2]
[421545079,1777848638000,-151.0,0.00015531,2]
[421545075,1777848638000,-356.64589342,0.0001553,2]
[421545073,1777848638000,-500.0,0.0001553,2]
[421545074,1777848638000,-500.0,0.0001553,2]
[421545081,1777848638000,-151.0,0.00015531,2]
[421545072,1777848638000,-216.10513454,0.0001553,2]
[421545076,1777848638000,-500.0,0.00015531,2]
[421545082,1777848638000,-151.0,0.00015531,2]
[421545071,1777848638000,-1141.58566892,0.00015462,2]
[421545077,1777848638000,-1957.856,0.00015531,2]
[421545078,1777848638000,-537.6845,0.00015531,2]
[421545063,1777848638000,-456.0872351,0.00015304,2]
[421545067,1777848638000,-152.0,0.00015425,7]
[421545080,1777848638000,-151.0,0.00015531,2]
[421545068,1777848638000,-152.0,0.00015425,7]
[421545065,1777848638000,-152.0,0.0001542,7]
[421545061,1777848638000,-456.2076372,0.00015282,2]
[421545062,1777848638000,-456.159554,0.00015299,2]
[421545060,1777848638000,-500.0,0.00015282,2]
[421545064,1777848638000,-152.0,0.00015415,7]
[421545059,1777848638000,-304.3,0.00015139,2]
[421545058,1777848638000,-2275.45882061,0.00015084,2]
[421545089,1777848638000,-151.0,0.00015531,2]
[421545069,1777848638000,-152.0,0.00015425,7]
[421545091,1777848638000,-151.0,0.00015531,2]
[421545066,1777848638000,-152.0,0.0001542,7]
[421545086,1777848638000,-151.0,0.00015531,2]
[421545090,1777848638000,-151.0,0.00015531,2]
[421545111,1777848638000,-500.0,0.00015561,2]
[421545108,1777848638000,-500.0,0.00015561,2]
[421545109,1777848638000,-500.0,0.00015561,2]
[421545107,1777848638000,-424.23678307,0.00015561,2]
[421545097,1777848638000,-162.380719,0.00015553,2]
[421545102,1777848638000,-500.0,0.00015561,2]
[421545101,1777848638000,-192.30618066,0.00015561,2]
[421545096,1777848638000,-445.202766,0.00015553,2]
[421545110,1777848638000,-500.0,0.00015561,2]
[421545099,1777848638000,-537.6845,0.00015553,2]
[421545104,1777848638000,-281.85839364,0.00015561,2]
[421545098,1777848638000,-151.0,0.00015553,2]
[421545094,1777848638000,-151.0,0.00015531,2]
[421545088,1777848638000,-151.0,0.00015531,2]
[421545087,1777848638000,-151.0,0.00015531,2]
[421545092,1777848638000,-151.0,0.00015531,2]
[421545084,1777848638000,-151.0,0.00015531,2]
[421545103,1777848638000,-500.0,0.00015561,2]
[421545093,1777848638000,-151.0,0.00015531,2]
[421545085,1777848638000,-151.0,0.00015531,2]
[421545095,1777848638000,-2150.738,0.00015531,2]
[421545105,1777848638000,-500.0,0.00015561,2]
[421545106,1777848638000,-500.0,0.00015561,2]
[421545100,1777848638000,-156.89658255,0.00015553,2]
[421545083,1777848638000,-151.0,0.00015531,2]
[421545117,1777848639000,-500.0,0.00015561,2]
[421545118,1777848639000,-500.0,0.00015561,2]
[421545114,1777848639000,-500.0,0.00015561,2]
[421545116,1777848639000,-500.0,0.00015561,2]
[421545113,1777848639000,-500.0,0.00015561,2]
[421545115,1777848639000,-500.0,0.00015561,2]
[421545119,1777848639000,-500.0,0.00015561,2]
[421545121,1777848639000,-2653.11375934,0.00015562,2]
[421545120,1777848639000,-568.56,0.00015561,2]
[421545122,1777848639000,-524837.03501131,0.00015562,2]
[421545112,1777848639000,-500.0,0.00015561,2]
[421545445,1777849832000,-4532.60703984,0.00014915,2]
[421545444,1777849832000,-454.329193,0.00014477,2]
[421545438,1777849832000,-2043.12498325,0.00014296,2]
[421545440,1777849832000,-4592.43418109,0.00014296,2]
[421545436,1777849832000,-510.78124581,0.00014296,2]
[421545433,1777849832000,-160.312076,0.0001374,2]
[421545426,1777849832000,-1000.0,0.00013699,2]
[421545422,1777849832000,-1200.0,0.00013157,2]
[421545428,1777849832000,-1000.0,0.00013699,2]
[421545425,1777849832000,-156.0,0.00013699,2]
[421545430,1777849832000,-200.0,0.00013725,2]
[421545420,1777849832000,-300.0,0.00013136,2]
[421545418,1777849832000,-254.85165537,0.00013109,2]
[421545416,1777849832000,-600.0,0.00012718,2]
[421545414,1777849832000,-477.238774,0.00012718,2]
[421545413,1777849832000,-2257.19698776,0.00012618,2]
[421545411,1777849832000,-901.36013539,0.00012618,2]
[421545409,1777849832000,-836.00997598,0.00012591,2]
[421545407,1777849832000,-4163.99002402,0.00012591,2]
[421545423,1777849832000,-300.0,0.00013698,2]
[421545451,1777849832000,-351.86742505,0.00015,2]
[421545449,1777849832000,-327.88329539,0.00015,2]
[421545447,1777849832000,-217.92895125,0.00015,2]
[421545477,1777849832000,-461.87469429,0.00015014,2]
[421545476,1777849832000,-500.0,0.00015014,2]
[421545473,1777849832000,-500.0,0.00015014,2]
[421545472,1777849832000,-500.0,0.00015014,2]
[421545475,1777849832000,-500.0,0.00015014,2]
[421545469,1777849832000,-265.83327113,0.00015014,2]
[421545468,1777849832000,-500.0,0.00015014,2]
[421545470,1777849832000,-378.67049574,0.00015014,2]
[421545471,1777849832000,-500.0,0.00015014,2]
[421545474,1777849832000,-622.53195893,0.00015014,2]
[421545466,1777849832000,-500.0,0.00015014,2]
[421545467,1777849832000,-500.0,0.00015014,2]
[421545453,1777849832000,-367.327563,0.00015,2]
[421545457,1777849832000,-500.0,0.00015014,2]
[421545458,1777849832000,-500.0,0.00015014,2]
[421545455,1777849832000,-420.0,0.00015011,2]
[421545464,1777849832000,-500.0,0.00015014,2]
[421545465,1777849832000,-623.023006,0.00015014,2]
[421545462,1777849832000,-500.0,0.00015014,2]
[421545460,1777849832000,-500.0,0.00015014,2]
[421545442,1777849832000,-1138.0,0.00014473,2]
[421545495,1777849838000,-5000.0,0.00014864,2]
[421545503,1777849838000,-14927.80248185,0.00015015,2]
[421545501,1777849838000,-12473.43876115,0.00015015,2]
[421545502,1777849838000,-417924.11916997,0.00015015,2]
[421545500,1777849838000,-500.0,0.00015014,2]
[421545498,1777849838000,-500.0,0.00015014,2]
[421545497,1777849838000,-420.86943738,0.00015014,2]
[421545499,1777849838000,-500.0,0.00015014,2]
[421545496,1777849838000,-38.12530571,0.00015014,2]
[421545509,1777849841000,-15838.6,0.00015015,2]
[421545508,1777849841000,-475.5589574,0.00015015,2]
[421545528,1777849843000,-6264.6768635,0.00015015,2]
[421545527,1777849843000,-4183.23342781,0.00015015,2]
[421545534,1777849844000,-1591.27977177,0.00015015,2]
[421545531,1777849844000,-26064.12341471,0.00015015,2]
[421545535,1777849844000,-8545.19668423,0.00015015,2]
[421545530,1777849844000,-3928.60947472,0.00015015,2]
[421545533,1777849844000,-5029.77788828,0.00015015,2]
[421545532,1777849844000,-5284.15326649,0.00015015,2]
[421545529,1777849844000,-7040.94383452,0.00015015,2]
[421545547,1777849847000,-1011.56306623,0.00015015,2]
[421545549,1777849847000,-10820.90150285,0.00015015,2]
[421545548,1777849847000,-58049.26918042,0.00015015,2]
[421545666,1777851031000,-325.6399711,0.00014453,2]
[421545664,1777851031000,-151.9626062,0.00014453,2]
[421545672,1777851031000,-151.0,0.00014525,2]
[421545676,1777851031000,-10511.03113711,0.00014715,2]
[421545662,1777851031000,-200.0,0.00014378,2]
[421545659,1777851031000,-187.030755,0.00013699,2]
[421545670,1777851031000,-325.6399711,0.00014525,2]
[421545657,1777851031000,-253.76717768,0.00013091,2]
[421545661,1777851031000,-200.0,0.0001389,2]
[421545660,1777851031000,-1000.0,0.00013699,2]
[421545658,1777851031000,-1000.0,0.00013699,2]
[421545656,1777851031000,-605.0,0.00013025,2]
[421545655,1777851031000,-4622.9069226,0.00012895,2]
[421545654,1777851031000,-377.0930774,0.00012895,2]
[421545663,1777851031000,-300.0,0.00014452,2]
[421545674,1777851031000,-456.2076372,0.00014525,2]
[421545668,1777851031000,-455.9216971,0.00014459,2]
[421545698,1777851031000,-500.0,0.00014814,2]
[421545681,1777851031000,-5000.0,0.00014784,2]
[421545703,1777851031000,-500.0,0.00014814,2]
[421545704,1777851031000,-500.0,0.00014814,2]
[421545701,1777851031000,-500.0,0.00014814,2]
[421545700,1777851031000,-225.38851133,0.00014814,2]
[421545695,1777851031000,-500.0,0.00014813,2]
[421545697,1777851031000,-178.49040062,0.00014813,2]
[421545702,1777851031000,-500.0,0.00014814,2]
[421545679,1777851031000,-500.0,0.00014783,2]
[421545691,1777851031000,-500.0,0.00014813,2]
[421545689,1777851031000,-333.29036185,0.00014813,2]
[421545696,1777851031000,-500.0,0.00014813,2]
[421545699,1777851031000,-500.0,0.00014814,2]
[421545685,1777851031000,-5000.0,0.00014784,2]
[421545687,1777851031000,-423.573,0.00014784,2]
[421545683,1777851031000,-5000.0,0.00014784,2]
[421545693,1777851031000,-500.0,0.00014813,2]
[421545713,1777851032000,-201.28726402,0.00014814,2]
[421545710,1777851032000,-500.0,0.00014814,2]
[421545712,1777851032000,-500.0,0.00014814,2]
[421545706,1777851032000,-500.0,0.00014814,2]
[421545707,1777851032000,-500.0,0.00014814,2]
[421545711,1777851032000,-500.0,0.00014814,2]
[421545705,1777851032000,-500.0,0.00014814,2]
[421545708,1777851032000,-536.32448605,0.00014814,2]
[421545715,1777851032000,-500.0,0.00014814,2]
[421545709,1777851032000,-500.0,0.00014814,2]
[421545716,1777851032000,-500.0,0.00014814,2]
[421545725,1777851032000,-2149.01028481,0.00014815,2]
[421545723,1777851032000,-4240.55941701,0.00014815,2]
[421545722,1777851032000,-399.29698368,0.00014815,2]
[421545720,1777851032000,-500.0,0.00014814,2]
[421545721,1777851032000,-36711.54021739,0.00014815,2]
[421545714,1777851032000,-500.0,0.00014814,2]
[421545717,1777851032000,-550.0,0.00014814,2]
[421545719,1777851032000,-500.0,0.00014814,2]
[421545718,1777851032000,-500.0,0.00014814,2]
[421545724,1777851032000,-2832.23513355,0.00014815,2]
[421545738,1777851040000,-635274.15737822,0.00014815,2]
[421545736,1777851040000,-2028.97951315,0.00014815,2]
[421545734,1777851040000,-242.05448896,0.00014814,2]
[421545735,1777851040000,-46346.45857086,0.00014815,2]
[421545737,1777851040000,-6100.04329361,0.00014815,2]
[421545745,1777851042000,-1100.18092451,0.00014815,2]
[421545750,1777851046000,-15630.2,0.00014815,2]
[421545751,1777851046000,-1405.14528569,0.00014815,2]
[421545749,1777851046000,-403553.66336547,0.00014815,2]
[421545748,1777851046000,-4342.51144702,0.00014667,2]
[421545747,1777851046000,-657.48855298,0.00014667,2]
[421546427,1777852219000,796.90981245,8.01e-05,2]
[421546429,1777852231000,-2942.81540131,8.12e-05,2]
[421546430,1777852231000,-3493.62766989,8.202e-05,2]
[421546428,1777852231000,-808.52906721,8.12e-05,2]
[421546470,1777852238000,-500.0,0.00014519,2]
[421546469,1777852238000,-4511.12776812,0.00014475,2]
[421546475,1777852238000,-500.0,0.00014713,2]
[421546476,1777852238000,-500.0,0.00014713,2]
[421546483,1777852238000,-500.0,0.00014713,2]
[421546481,1777852238000,-500.0,0.00014713,2]
[421546479,1777852238000,-500.0,0.00014713,2]
[421546477,1777852238000,-500.0,0.00014713,2]
[421546478,1777852238000,-500.0,0.00014713,2]
[421546480,1777852238000,-500.0,0.00014713,2]
[421546484,1777852238000,-500.0,0.00014713,2]
[421546489,1777852238000,-537.6845,0.00014745,2]
[421546487,1777852238000,-1298.31,0.00014714,2]
[421546486,1777852238000,-543.78,0.00014714,2]
[421546482,1777852238000,-500.0,0.00014713,2]
[421546488,1777852238000,-1957.856,0.00014745,2]
[421546490,1777852238000,-151.0,0.00014745,2]
[421546500,1777852238000,-4656.95982,0.00014801,2]
[421546496,1777852238000,-1298.31,0.00014783,2]
[421546492,1777852238000,-151.0,0.00014745,2]
[421546501,1777852238000,-3276.5042308,0.00014801,2]
[421546491,1777852238000,-151.0,0.00014745,2]
[421546464,1777852238000,-500.0,0.00014274,2]
[421546485,1777852238000,-195.52272931,0.00014713,2]
[421546465,1777852238000,-5860.34731171,0.00014275,2]
[421546471,1777852238000,-500.0,0.00014574,2]
[421546447,1777852238000,-950.54447648,8.202e-05,2]
[421546448,1777852238000,-478.85715799,8.202e-05,2]
[421546449,1777852238000,-76.97069564,8.202e-05,2]
[421546450,1777852238000,-252.9498152,8.327e-05,2]
[421546452,1777852238000,-300.0,8.453e-05,2]
[421546458,1777852238000,-187.030756,0.00013699,2]
[421546461,1777852238000,-1000.0,0.00013699,2]
[421546453,1777852238000,-300.0,8.453e-05,2]
[421546455,1777852238000,-180.0,9.298e-05,2]
[421546454,1777852238000,-1541.70162412,8.5e-05,7]
[421546466,1777852238000,-338.859,0.00014275,2]
[421546451,1777852238000,-333.0,8.368e-05,2]
[421546459,1777852238000,-325.5247152,0.00013699,2]
[421546456,1777852238000,-298.48078194,0.00010327,2]
[421546460,1777852238000,-674.4752848,0.00013699,2]
[421546463,1777852238000,-164.28455406,0.00014175,2]
[421546473,1777852238000,-500.0,0.00014713,2]
[421546474,1777852238000,-500.0,0.00014713,2]
[421546472,1777852238000,-7216.07033574,0.00014575,2]
[421546462,1777852238000,-2716.31188312,0.00014175,2]
[421546468,1777852238000,-6538.20882368,0.00014375,2]
[421546467,1777852238000,-389.54271541,0.00014327,2]
[421546457,1777852238000,-344.01174868,0.00012327,2]
[421546493,1777852238000,-152.35572714,0.00014745,2]
[421546506,1777852238000,-158.89,0.00014811,7]
[421546498,1777852238000,-2030.296672,0.000148,2]
[421546523,1777852238000,-543.78,0.00014814,2]
[421546520,1777852238000,-543.78,0.00014814,2]
[421546530,1777852238000,-543.78,0.00014814,2]
[421546529,1777852238000,-543.78,0.00014814,2]
[421546532,1777852238000,-543.78,0.00014814,2]
[421546531,1777852238000,-543.78,0.00014814,2]
[421546541,1777852238000,-543.94,0.00014814,2]
[421546540,1777852238000,-543.78,0.00014814,2]
[421546533,1777852238000,-543.78,0.00014814,2]
[421546534,1777852238000,-543.78,0.00014814,2]
[421546517,1777852238000,-207.77032544,0.00014813,2]
[421546537,1777852238000,-543.78,0.00014814,2]
[421546538,1777852238000,-543.78,0.00014814,2]
[421546494,1777852238000,-2150.738,0.00014745,2]
[421546536,1777852238000,-543.78,0.00014814,2]
[421546543,1777852238000,-1298.31,0.00014814,2]
[421546542,1777852238000,-1298.31,0.00014814,2]
[421546544,1777852238000,-1298.31,0.00014814,2]
[421546545,1777852238000,-1298.31,0.00014814,2]
[421546547,1777852238000,-1298.31,0.00014814,2]
[421546546,1777852238000,-1298.31,0.00014814,2]
[421546548,1777852238000,-1298.31,0.00014814,2]
[421546535,1777852238000,-543.78,0.00014814,2]
[421546525,1777852238000,-543.78,0.00014814,2]
[421546539,1777852238000,-543.78,0.00014814,2]
[421546519,1777852238000,-500.0,0.00014813,2]
[421546521,1777852238000,-543.78,0.00014814,2]
[421546495,1777852238000,-543.78,0.00014783,2]
[421546497,1777852238000,-500.0,0.00014783,2]
[421546499,1777852238000,-557.5788265,0.000148,2]
[421546502,1777852238000,-158.89,0.00014811,7]
[421546513,1777852238000,-500.0,0.00014813,2]
[421546505,1777852238000,-158.89,0.00014811,7]
[421546514,1777852238000,-500.0,0.00014813,2]
[421546509,1777852238000,-157.77195794,0.00014813,2]
[421546507,1777852238000,-500.0,0.00014813,2]
[421546504,1777852238000,-158.89,0.00014811,7]
[421546503,1777852238000,-158.89,0.00014811,7]
[421546510,1777852238000,-500.0,0.00014813,2]
[421546515,1777852238000,-500.0,0.00014813,2]
[421546508,1777852238000,-500.0,0.00014813,2]
[421546524,1777852238000,-543.78,0.00014814,2]
[421546522,1777852238000,-543.78,0.00014814,2]
[421546527,1777852238000,-543.78,0.00014814,2]
[421546528,1777852238000,-543.78,0.00014814,2]
[421546526,1777852238000,-543.78,0.00014814,2]
[421546518,1777852238000,-500.0,0.00014813,2]
[421546516,1777852238000,-500.0,0.00014813,2]
[421546512,1777852238000,-625.42714023,0.00014813,2]
[421546511,1777852238000,-500.0,0.00014813,2]
[421546582,1777852239000,-158.89,0.0001482,7]
[421546578,1777852239000,-152.0,0.00014816,7]
[421546570,1777852239000,-158.89,0.00014815,7]
[421546580,1777852239000,-158.89,0.0001482,7]
[421546563,1777852239000,-1298.39552728,0.00014814,2]
[421546581,1777852239000,-158.89,0.0001482,7]
[421546574,1777852239000,-500.0,0.00014815,2]
[421546571,1777852239000,-158.89,0.00014815,7]
[421546572,1777852239000,-158.89,0.00014815,7]
[421546575,1777852239000,-152.0,0.00014816,7]
[421546573,1777852239000,-158.89,0.00014815,7]
[421546579,1777852239000,-178.29146439,0.00014816,7]
[421546566,1777852239000,-158.89,0.00014815,7]
[421546569,1777852239000,-158.89,0.00014815,7]
[421546561,1777852239000,-1298.31,0.00014814,2]
[421546549,1777852239000,-1298.31,0.00014814,2]
[421546559,1777852239000,-1298.31,0.00014814,2]
[421546554,1777852239000,-1298.31,0.00014814,2]
[421546553,1777852239000,-1298.31,0.00014814,2]
[421546555,1777852239000,-1298.31,0.00014814,2]
[421546551,1777852239000,-1298.31,0.00014814,2]
[421546550,1777852239000,-1298.31,0.00014814,2]
[421546552,1777852239000,-1298.31,0.00014814,2]
[421546562,1777852239000,-1298.31,0.00014814,2]
[421546556,1777852239000,-1298.31,0.00014814,2]
[421546558,1777852239000,-1298.31,0.00014814,2]
[421546567,1777852239000,-158.89,0.00014815,7]
[421546560,1777852239000,-1298.31,0.00014814,2]
[421546568,1777852239000,-158.89,0.00014815,7]
[421546564,1777852239000,-158.89,0.00014815,7]
[421546565,1777852239000,-158.89,0.00014815,7]
[421546557,1777852239000,-1298.31,0.00014814,2]
[421546576,1777852239000,-152.0,0.00014816,7]
[421546596,1777852239000,-152.0,0.00014825,7]
[421546583,1777852239000,-158.89,0.0001482,7]
[421546603,1777852239000,-6889.8411547,0.00014958,2]
[421546604,1777852239000,-2264.10087164,0.00014965,2]
[421546606,1777852239000,-500.0,0.00014973,2]
[421546605,1777852239000,-621.78829552,0.00014965,2]
[421546608,1777852239000,-500.0,0.00014973,2]
[421546607,1777852239000,-155.16991681,0.00014973,2]
[421546601,1777852239000,-2183.31810187,0.0001491,2]
[421546610,1777852239000,-500.0,0.00014973,2]
[421546614,1777852239000,-500.0,0.00014973,2]
[421546613,1777852239000,-500.0,0.00014973,2]
[421546612,1777852239000,-500.0,0.00014973,2]
[421546616,1777852239000,-155548.32639134,0.00015,2]
[421546615,1777852239000,-500.0,0.00014973,2]
[421546577,1777852239000,-152.0,0.00014816,7]
[421546609,1777852239000,-500.0,0.00014973,2]
[421546602,1777852239000,-599.60298507,0.0001491,2]
[421546611,1777852239000,-409.84305636,0.00014973,2]
[421546599,1777852239000,-578.20924308,0.00014855,2]
[421546585,1777852239000,-152.0,0.00014821,7]
[421546584,1777852239000,-158.89,0.0001482,7]
[421546587,1777852239000,-152.0,0.00014821,7]
[421546592,1777852239000,-152.0,0.00014821,7]
[421546593,1777852239000,-152.0,0.00014821,7]
[421546586,1777852239000,-152.0,0.00014821,7]
[421546590,1777852239000,-152.0,0.00014821,7]
[421546595,1777852239000,-152.0,0.00014825,7]
[421546589,1777852239000,-152.0,0.00014821,7]
[421546594,1777852239000,-152.0,0.00014825,7]
[421546591,1777852239000,-152.0,0.00014821,7]
[421546597,1777852239000,-152.0,0.00014825,7]
[421546598,1777852239000,-2105.41764886,0.00014855,2]
[421546588,1777852239000,-152.0,0.00014821,7]
[421546600,1777852239000,-151.0,0.000149,2]
[421546617,1777852240000,-2284.60625744,0.00015,2]
[421546661,1777852243000,-431.83675393,0.00015,2]
[421546660,1777852243000,-3779.46903291,0.00015,2]
[421546659,1777852243000,-40303.50783046,0.00015,2]
[421546658,1777852243000,-37895.35390825,0.00015,2]
[421546670,1777852246000,-300.0,0.00015,2]
[421546671,1777852246000,-65950.37518242,0.00015,2]
[421546673,1777852246000,-8612.37168557,0.00015,2]
[421546672,1777852246000,-44900.39281716,0.00015,2]
[421546681,1777852402000,182.75505665,0.00019233,120]
[421546939,1777853433000,-151.5,0.00014525,2]
[421546933,1777853433000,-1000.0,0.00013699,2]
[421546943,1777853433000,-500.0,0.00014699,2]
[421546941,1777853433000,-3947.23679707,0.00014599,2]
[421546942,1777853433000,-200.0,0.00014664,2]
[421546944,1777853433000,-500.0,0.00014699,2]
[421546938,1777853433000,-156.20769032,0.00014525,2]
[421546935,1777853433000,-456.2076372,0.00014525,2]
[421546940,1777853433000,-151.5,0.00014525,2]
[421546934,1777853433000,-456.159554,0.00014525,2]
[421546945,1777853433000,-500.0,0.00014699,2]
[421546932,1777853433000,-231.76693866,0.00013135,2]
[421546930,1777853433000,-604.0,0.00013004,2]
[421546931,1777853433000,-6297.0,0.00013111,5]
[421546929,1777853433000,-5000.0,0.00013004,2]
[421546946,1777853433000,-500.0,0.00014699,2]
[421546937,1777853433000,-221.89232786,0.00014525,2]
[421546948,1777853433000,-500.0,0.00014699,2]
[421546961,1777853433000,-167.96905846,0.00014699,2]
[421546952,1777853433000,-500.0,0.00014699,2]
[421546966,1777853433000,-31.79023549,0.00014699,2]
[421546964,1777853433000,-30.06534182,0.00014699,2]
[421546965,1777853433000,-500.0,0.00014699,2]
[421546956,1777853433000,-500.0,0.00014699,2]
[421546963,1777853433000,-469.93465818,0.00014699,2]
[421546962,1777853433000,-500.0,0.00014699,2]
[421546959,1777853433000,-500.0,0.00014699,2]
[421546958,1777853433000,-500.0,0.00014699,2]
[421546960,1777853433000,-500.0,0.00014699,2]
[421546954,1777853433000,-500.0,0.00014699,2]
[421546953,1777853433000,-500.0,0.00014699,2]
[421546947,1777853433000,-195.01396801,0.00014699,2]
[421546957,1777853433000,-500.0,0.00014699,2]
[421546951,1777853433000,-500.0,0.00014699,2]
[421546950,1777853433000,-157.16829904,0.00014699,2]
[421546949,1777853433000,-500.0,0.00014699,2]
[421546955,1777853433000,-500.0,0.00014699,2]
[421546994,1777853443000,-294.26882073,0.00014699,2]
[421547001,1777853443000,-500.0,0.00014699,2]
[421546995,1777853443000,-500.0,0.00014699,2]
[421546996,1777853443000,-500.0,0.00014699,2]
[421546993,1777853443000,-205.73117927,0.00014699,2]
[421547002,1777853443000,-500.0,0.00014699,2]
[421546992,1777853443000,-621.01771437,0.00014699,2]